[Event "Early-Titled-Tuesday-Blitz-January-16-2024"]
[Site "Chess.com"]
[Date "2024.01.16"]
[Round "5"]
[White "Korchmar_Vasiliy"]
[Black "BogdanDeac"]
[Result "1/2-1/2"]
[WhiteElo "2751"]
[BlackElo "3018"]
[TimeControl "180+1"]
[EndTime "8:59:58 PST"]
[Termination "Game drawn by repetition"]

1. e4 {[%clk 0:03:00.9]} 1... c5 {[%clk 0:03:00.1]} 2. d4 {[%clk 0:03:01.1]}
2... cxd4 {[%clk 0:03:00]} 3. Qxd4 {[%clk 0:03:02]} 3... Nc6 {[%clk 0:02:59.5]}
4. Qd3 {[%clk 0:03:02.6]} 4... g6 {[%clk 0:02:59.5]} 5. Nc3 {[%clk 0:03:02.9]}
5... Bg7 {[%clk 0:02:59.3]} 6. Nf3 {[%clk 0:03:03.5]} 6... Nf6 {[%clk
0:02:59.5]} 7. Be2 {[%clk 0:03:04.1]} 7... O-O {[%clk 0:02:56.8]} 8. O-O {[%clk
0:03:04.4]} 8... d6 {[%clk 0:02:57]} 9. Nd5 {[%clk 0:03:05]} 9... Nd7 {[%clk
0:02:54.3]} 10. c3 {[%clk 0:03:04.9]} 10... Nc5 {[%clk 0:02:52.7]} 11. Qc2
{[%clk 0:03:04.6]} 11... e6 {[%clk 0:02:52.9]} 12. Ne3 {[%clk 0:03:04.3]} 12...
Qc7 {[%clk 0:02:32.3]} 13. Rd1 {[%clk 0:03:03.2]} 13... Rd8 {[%clk 0:02:32.1]}
14. h4 {[%clk 0:02:53.2]} 14... h5 {[%clk 0:02:24.1]} 15. Nf1 {[%clk 0:02:28.2]}
15... Nd7 {[%clk 0:01:50.1]} 16. Bg5 {[%clk 0:02:26.8]} 16... Nf6 {[%clk
0:01:43]} 17. Ne3 {[%clk 0:02:20.7]} 17... b6 {[%clk 0:01:28.8]} 18. Bf4 {[%clk
0:02:07.4]} 18... Bb7 {[%clk 0:01:22.4]} 19. Nc4 {[%clk 0:02:06.5]} 19... Ne8
{[%clk 0:01:11.1]} 20. a4 {[%clk 0:01:56.1]} 20... Ne7 {[%clk 0:01:04.9]} 21.
Ng5 {[%clk 0:01:48.2]} 21... Qc6 {[%clk 0:00:53.6]} 22. Ne3 {[%clk 0:01:33.3]}
22... a6 {[%clk 0:00:43.7]} 23. Bf3 {[%clk 0:01:24.5]} 23... Qc7 {[%clk
0:00:42]} 24. Qe2 {[%clk 0:01:21.1]} 24... Bc6 {[%clk 0:00:22.8]} 25. Rd3 {[%clk
0:01:14.2]} 25... Qb7 {[%clk 0:00:18.9]} 26. Bxh5 {[%clk 0:01:13.9]} 26... gxh5
{[%clk 0:00:17.8]} 27. Qxh5 {[%clk 0:01:14.8]} 27... Nf6 {[%clk 0:00:17.9]} 28.
Qxf7+ {[%clk 0:01:13.6]} 28... Kh8 {[%clk 0:00:14.1]} 29. Nxe6 {[%clk
0:00:47.3]} 29... Ng6 {[%clk 0:00:14.2]} 30. Qxg6 {[%clk 0:00:22]} 30... Bxe4
{[%clk 0:00:12]} 31. Qxg7+ {[%clk 0:00:13.8]} 31... Qxg7 {[%clk 0:00:12.2]} 32.
Nxg7 {[%clk 0:00:14.7]} 32... Bxd3 {[%clk 0:00:12.7]} 33. Ne6 {[%clk 0:00:14.4]}
33... Rd7 {[%clk 0:00:12.9]} 34. Rd1 {[%clk 0:00:09.3]} 34... Re8 {[%clk
0:00:11.5]} 35. Ng5 {[%clk 0:00:04.7]} 35... Bg6 {[%clk 0:00:11.2]} 36. Rxd6
{[%clk 0:00:04.1]} 36... Rxd6 {[%clk 0:00:10.9]} 37. Bxd6 {[%clk 0:00:05]} 37...
Kg8 {[%clk 0:00:11.3]} 38. g3 {[%clk 0:00:02.5]} 38... Ne4 {[%clk 0:00:09.9]}
39. Bf4 {[%clk 0:00:02.4]} 39... Rd8 {[%clk 0:00:07.6]} 40. Ng4 {[%clk
0:00:02.6]} 40... Rd1+ {[%clk 0:00:05.5]} 41. Kg2 {[%clk 0:00:03]} 41... Be8
{[%clk 0:00:06.1]} 42. Kf3 {[%clk 0:00:02.8]} 42... Bc6 {[%clk 0:00:05.6]} 43.
Ke3 {[%clk 0:00:03.2]} 43... Re1+ {[%clk 0:00:05.1]} 44. Kd4 {[%clk 0:00:03.8]}
44... Rd1+ {[%clk 0:00:04.8]} 45. Ke3 {[%clk 0:00:03.8]} 45... Ra1 {[%clk
0:00:04.8]} 46. Ne5 {[%clk 0:00:03.5]} 46... Bb7 {[%clk 0:00:04.7]} 47. h5
{[%clk 0:00:04]} 47... Re1+ {[%clk 0:00:04.7]} 48. Kd4 {[%clk 0:00:03.8]} 48...
Nxf2 {[%clk 0:00:04.4]} 49. h6 {[%clk 0:00:03.6]} 49... Be4 {[%clk 0:00:04.4]}
50. Nd7 {[%clk 0:00:02.3]} 50... Ng4 {[%clk 0:00:03.9]} 51. Nxb6 {[%clk
0:00:01.3]} 51... Bg6 {[%clk 0:00:03.4]} 52. c4 {[%clk 0:00:01.2]} 52... Nxh6
{[%clk 0:00:03.3]} 53. c5 {[%clk 0:00:01.7]} 53... Nf5+ {[%clk 0:00:03.9]} 54.
Kd5 {[%clk 0:00:01.7]} 54... Be8 {[%clk 0:00:04.5]} 55. Nc8 {[%clk 0:00:01.4]}
55... Rd1+ {[%clk 0:00:03.9]} 56. Ke5 {[%clk 0:00:01.8]} 56... Bd7 {[%clk
0:00:03.6]} 57. Nd6 {[%clk 0:00:02.7]} 57... Re1+ {[%clk 0:00:03.2]} 58. Kf6
{[%clk 0:00:02.7]} 58... Ne7 {[%clk 0:00:02.9]} 59. b4 {[%clk 0:00:01.9]} 59...
Nd5+ {[%clk 0:00:03]} 60. Kg6 {[%clk 0:00:01.7]} 60... Re2 {[%clk 0:00:02.8]}
61. b5 {[%clk 0:00:02.3]} 61... axb5 {[%clk 0:00:03]} 62. axb5 {[%clk
0:00:03.2]} 62... Ne7+ {[%clk 0:00:03.2]} 63. Kf6 {[%clk 0:00:03]} 63... Nd5+
{[%clk 0:00:03.6]} 64. Kg6 {[%clk 0:00:03.3]} 64... Ne7+ {[%clk 0:00:03.9]} 65.
Kf6 {[%clk 0:00:03.5]} 65... Nd5+ {[%clk 0:00:04.2]} 66. Kg6 {[%clk 0:00:04.1]}
1/2-1/2

[Event "Early-Titled-Tuesday-Blitz-January-16-2024"]
[Site "Chess.com"]
[Date "2024.01.16"]
[Round "5"]
[White "Quattroporte300"]
[Black "GrotBchess"]
[Result "1-0"]
[WhiteElo "2471"]
[BlackElo "2290"]
[TimeControl "180+1"]
[EndTime "9:00:03 PST"]
[Termination "Quattroporte300 won by checkmate"]

1. e4 {[%clk 0:02:57.3]} 1... c5 {[%clk 0:03:00]} 2. Nc3 {[%clk 0:02:56.7]} 2...
e6 {[%clk 0:02:59.7]} 3. g3 {[%clk 0:02:53.6]} 3... Nc6 {[%clk 0:02:57.3]} 4.
Bg2 {[%clk 0:02:53]} 4... g6 {[%clk 0:02:57.6]} 5. Nge2 {[%clk 0:02:50.9]} 5...
Bg7 {[%clk 0:02:57.7]} 6. d3 {[%clk 0:02:50.4]} 6... Nge7 {[%clk 0:02:56.5]} 7.
f4 {[%clk 0:02:49.3]} 7... d6 {[%clk 0:02:55.8]} 8. Be3 {[%clk 0:02:46.7]} 8...
Nd4 {[%clk 0:02:55.1]} 9. Qd2 {[%clk 0:02:45.3]} 9... Qa5 {[%clk 0:02:52.7]} 10.
Bxd4 {[%clk 0:02:11.1]} 10... cxd4 {[%clk 0:02:50.2]} 11. Nd1 {[%clk 0:02:05.2]}
11... Qxd2+ {[%clk 0:02:50]} 12. Kxd2 {[%clk 0:02:05.3]} 12... e5 {[%clk
0:02:50.3]} 13. b3 {[%clk 0:01:50.1]} 13... Nc6 {[%clk 0:02:47.4]} 14. Nb2
{[%clk 0:01:49.5]} 14... Be6 {[%clk 0:02:47.4]} 15. a4 {[%clk 0:01:45.1]} 15...
O-O {[%clk 0:02:46.7]} 16. Nc4 {[%clk 0:01:44.4]} 16... Bxc4 {[%clk 0:02:46.1]}
17. bxc4 {[%clk 0:01:43.8]} 17... b6 {[%clk 0:02:45.9]} 18. Rhf1 {[%clk
0:01:39.2]} 18... f6 {[%clk 0:02:36.3]} 19. f5 {[%clk 0:01:31.9]} 19... g5
{[%clk 0:02:35.4]} 20. h4 {[%clk 0:01:30.4]} 20... h6 {[%clk 0:02:35]} 21. Bf3
{[%clk 0:01:29.7]} 21... Kf7 {[%clk 0:02:33.9]} 22. c3 {[%clk 0:01:21.1]} 22...
Ke7 {[%clk 0:02:20.9]} 23. cxd4 {[%clk 0:01:20.2]} 23... exd4 {[%clk 0:02:20.9]}
24. e5 {[%clk 0:01:13.2]} 24... Nxe5 {[%clk 0:02:06.3]} 25. Bxa8 {[%clk
0:01:13]} 25... Rxa8 {[%clk 0:02:05.9]} 26. Nxd4 {[%clk 0:01:12.8]} 26... h5
{[%clk 0:01:56.7]} 27. Ne6 {[%clk 0:01:08]} 27... Bh6 {[%clk 0:01:53.8]} 28.
hxg5 {[%clk 0:01:06.1]} 28... fxg5 {[%clk 0:01:53.5]} 29. Ke2 {[%clk 0:01:06.3]}
29... Kf6 {[%clk 0:01:51.2]} 30. Nc7 {[%clk 0:00:59.5]} 30... Rc8 {[%clk
0:01:38.8]} 31. Nd5+ {[%clk 0:00:59.6]} 31... Kf7 {[%clk 0:01:38.7]} 32. Rh1
{[%clk 0:00:50.8]} 32... Re8 {[%clk 0:01:37.6]} 33. Rxh5 {[%clk 0:00:37.1]}
33... Bg7 {[%clk 0:01:29.6]} 34. f6 {[%clk 0:00:29.6]} 34... Ng4+ {[%clk
0:01:00.6]} 35. Kd2 {[%clk 0:00:26.5]} 35... Nxf6 {[%clk 0:00:51.5]} 36. Rf1
{[%clk 0:00:24.7]} 36... Kg6 {[%clk 0:00:48.4]} 37. Nxf6 {[%clk 0:00:24.1]}
37... Bxf6 {[%clk 0:00:47.9]} 38. Rh2 {[%clk 0:00:17.4]} 38... Be5 {[%clk
0:00:40.7]} 39. Re2 {[%clk 0:00:15.7]} 39... Rh8 {[%clk 0:00:35.7]} 40. g4
{[%clk 0:00:15.2]} 40... Rh4 {[%clk 0:00:34.1]} 41. Rg2 {[%clk 0:00:07.7]} 41...
Rh3 {[%clk 0:00:29.5]} 42. Rf8 {[%clk 0:00:07.1]} 42... Rh1 {[%clk 0:00:23.9]}
43. Ra8 {[%clk 0:00:07.1]} 43... Bf4+ {[%clk 0:00:21.6]} 44. Ke2 {[%clk
0:00:06.5]} 44... Rb1 {[%clk 0:00:18.3]} 45. Rxa7 {[%clk 0:00:06.6]} 45... Rb2+
{[%clk 0:00:18.2]} 46. Kf3 {[%clk 0:00:07.3]} 46... Rb3 {[%clk 0:00:17.7]} 47.
Ke4 {[%clk 0:00:07.1]} 47... Rb4 {[%clk 0:00:15.8]} 48. a5 {[%clk 0:00:06.2]}
48... bxa5 {[%clk 0:00:15.2]} 49. Rxa5 {[%clk 0:00:06.9]} 49... Kf6 {[%clk
0:00:14.8]} 50. Rb5 {[%clk 0:00:07.2]} 50... Ra4 {[%clk 0:00:14.4]} 51. Kd5
{[%clk 0:00:07.2]} 51... Ra3 {[%clk 0:00:13.7]} 52. d4 {[%clk 0:00:06.9]} 52...
Re3 {[%clk 0:00:13.3]} 53. Rb6 {[%clk 0:00:06]} 53... Re6 {[%clk 0:00:12.3]} 54.
c5 {[%clk 0:00:05.3]} 54... Re8 {[%clk 0:00:10]} 55. cxd6 {[%clk 0:00:05.1]}
55... Rd8 {[%clk 0:00:10.3]} 56. Re2 {[%clk 0:00:05]} 56... Rd7 {[%clk
0:00:09.2]} 57. Re6+ {[%clk 0:00:05.3]} 57... Kf7 {[%clk 0:00:08.9]} 58. Rh6
{[%clk 0:00:05.5]} 58... Kg7 {[%clk 0:00:08.5]} 59. Rh1 {[%clk 0:00:04.9]} 59...
Kf7 {[%clk 0:00:08.1]} 60. Ra1 {[%clk 0:00:04.9]} 60... Kg6 {[%clk 0:00:07.5]}
61. Ra8 {[%clk 0:00:04.8]} 61... Kf7 {[%clk 0:00:06.5]} 62. Rc8 {[%clk
0:00:05.2]} 62... Kg6 {[%clk 0:00:05.6]} 63. Ke6 {[%clk 0:00:04.8]} 63... Rf7
{[%clk 0:00:04.8]} 64. d7 {[%clk 0:00:05.1]} 64... Rf6+ {[%clk 0:00:04.9]} 65.
Kd5 {[%clk 0:00:05.7]} 65... Rxb6 {[%clk 0:00:05]} 66. d8=Q {[%clk 0:00:05.5]}
66... Rb5+ {[%clk 0:00:04.7]} 67. Kc4 {[%clk 0:00:04.5]} 67... Rb7 {[%clk
0:00:04.4]} 68. Rc6+ {[%clk 0:00:03.9]} 68... Kh7 {[%clk 0:00:03.3]} 69. Qd5
{[%clk 0:00:02.3]} 69... Rg7 {[%clk 0:00:02.9]} 70. Re6 {[%clk 0:00:01.9]} 70...
Rc7+ {[%clk 0:00:02.5]} 71. Kd3 {[%clk 0:00:01.5]} 71... Rg7 {[%clk 0:00:02.4]}
72. Qe4+ {[%clk 0:00:02.3]} 72... Kg8 {[%clk 0:00:01.8]} 73. Re8+ {[%clk
0:00:03]} 73... Kf7 {[%clk 0:00:01.9]} 74. Qe6# {[%clk 0:00:03.7]} 1-0

[Event "Early-Titled-Tuesday-Blitz-January-16-2024"]
[Site "Chess.com"]
[Date "2024.01.16"]
[Round "5"]
[White "SnekkerAndersen"]
[Black "Zohid6"]
[Result "1/2-1/2"]
[WhiteElo "2645"]
[BlackElo "2815"]
[TimeControl "180+1"]
[EndTime "9:00:15 PST"]
[Termination "Game drawn by repetition"]

1. d4 {[%clk 0:03:00.9]} 1... e6 {[%clk 0:02:58.6]} 2. e4 {[%clk 0:02:55.9]}
2... d5 {[%clk 0:02:57.7]} 3. Nc3 {[%clk 0:02:56]} 3... Nf6 {[%clk 0:02:56.6]}
4. e5 {[%clk 0:02:56.4]} 4... Nfd7 {[%clk 0:02:56.2]} 5. f4 {[%clk 0:02:57.2]}
5... c5 {[%clk 0:02:56.4]} 6. Nf3 {[%clk 0:02:57.9]} 6... Nc6 {[%clk 0:02:56.9]}
7. Be3 {[%clk 0:02:58.6]} 7... Qb6 {[%clk 0:02:56.9]} 8. Na4 {[%clk 0:02:54.7]}
8... Qa5+ {[%clk 0:02:56.8]} 9. c3 {[%clk 0:02:55.3]} 9... b6 {[%clk 0:02:56.8]}
10. Kf2 {[%clk 0:01:38]} 10... Ba6 {[%clk 0:02:54.7]} 11. Bxa6 {[%clk
0:01:34.4]} 11... Qxa6 {[%clk 0:02:55.6]} 12. b3 {[%clk 0:01:35.1]} 12... Be7
{[%clk 0:02:54.2]} 13. a3 {[%clk 0:01:34.9]} 13... O-O {[%clk 0:02:48.1]} 14. b4
{[%clk 0:01:35]} 14... cxd4 {[%clk 0:02:48.5]} 15. cxd4 {[%clk 0:01:29.5]} 15...
Rac8 {[%clk 0:02:48.3]} 16. Rc1 {[%clk 0:01:25.4]} 16... f6 {[%clk 0:02:42.5]}
17. Qb3 {[%clk 0:01:11.2]} 17... Qb7 {[%clk 0:02:33.2]} 18. Kg3 {[%clk
0:00:49.1]} 18... g5 {[%clk 0:02:28.4]} 19. Rhe1 {[%clk 0:00:42]} 19... gxf4+
{[%clk 0:02:20.2]} 20. Bxf4 {[%clk 0:00:42]} 20... fxe5 {[%clk 0:02:09.7]} 21.
Bxe5 {[%clk 0:00:41.9]} 21... Ncxe5 {[%clk 0:02:07.6]} 22. dxe5 {[%clk
0:00:42.8]} 22... Rxc1 {[%clk 0:01:58.8]} 23. Rxc1 {[%clk 0:00:41.6]} 23... Qb8
{[%clk 0:01:57.5]} 24. Qe3 {[%clk 0:00:30.2]} 24... Qe8 {[%clk 0:01:53.7]} 25.
h3 {[%clk 0:00:27.4]} 25... Kh8 {[%clk 0:01:45.1]} 26. Kh2 {[%clk 0:00:27.4]}
26... Rg8 {[%clk 0:01:40.6]} 27. Nb2 {[%clk 0:00:27.7]} 27... Nf8 {[%clk
0:01:29.7]} 28. Nd3 {[%clk 0:00:27.3]} 28... Ng6 {[%clk 0:01:30.2]} 29. Nf4
{[%clk 0:00:25.1]} 29... Nxf4 {[%clk 0:01:25.6]} 30. Qxf4 {[%clk 0:00:26]} 30...
Qg6 {[%clk 0:01:26.2]} 31. Rg1 {[%clk 0:00:22.8]} 31... Rf8 {[%clk 0:01:22.4]}
32. Qe3 {[%clk 0:00:22.8]} 32... Rc8 {[%clk 0:01:12.5]} 33. Rf1 {[%clk
0:00:22.7]} 33... Rg8 {[%clk 0:01:04.4]} 34. g4 {[%clk 0:00:22.8]} 34... Rf8
{[%clk 0:01:02.6]} 35. Qe2 {[%clk 0:00:22.1]} 35... Qh6 {[%clk 0:00:56.5]} 36.
Kg2 {[%clk 0:00:17.5]} 36... Qf4 {[%clk 0:00:52.3]} 37. Nh2 {[%clk 0:00:16.2]}
37... Qd4 {[%clk 0:00:36.2]} 38. Rxf8+ {[%clk 0:00:16.2]} 38... Bxf8 {[%clk
0:00:37.1]} 39. Nf3 {[%clk 0:00:17.1]} 39... Qc3 {[%clk 0:00:37.1]} 40. Ng5
{[%clk 0:00:17.1]} 40... Qc8 {[%clk 0:00:23.9]} 41. Qf2 {[%clk 0:00:16.5]} 41...
Bg7 {[%clk 0:00:24.4]} 42. Qf7 {[%clk 0:00:16.6]} 42... Qg8 {[%clk 0:00:18]} 43.
Qxg8+ {[%clk 0:00:16.3]} 43... Kxg8 {[%clk 0:00:18.2]} 44. Nxe6 {[%clk
0:00:16.8]} 44... Bxe5 {[%clk 0:00:18.9]} 45. Kf3 {[%clk 0:00:16.3]} 45... Kf7
{[%clk 0:00:18.5]} 46. Nf4 {[%clk 0:00:16.9]} 46... Bb2 {[%clk 0:00:13.2]} 47.
a4 {[%clk 0:00:16.7]} 47... d4 {[%clk 0:00:13.3]} 48. Ke4 {[%clk 0:00:16.9]}
48... Kf6 {[%clk 0:00:13.7]} 49. h4 {[%clk 0:00:17.4]} 49... h6 {[%clk
0:00:12.8]} 50. Nd5+ {[%clk 0:00:16.7]} 50... Ke6 {[%clk 0:00:12.5]} 51. Nc7+
{[%clk 0:00:16.7]} 51... Kd7 {[%clk 0:00:08.4]} 52. Nb5 {[%clk 0:00:16.9]} 52...
a6 {[%clk 0:00:08.5]} 53. Nxd4 {[%clk 0:00:16.9]} 53... Bc3 {[%clk 0:00:09.1]}
54. b5 {[%clk 0:00:17.4]} 54... axb5 {[%clk 0:00:09.7]} 55. axb5 {[%clk
0:00:18.3]} 55... Be1 {[%clk 0:00:08.2]} 56. Nf5 {[%clk 0:00:18.2]} 56... Ke6
{[%clk 0:00:08.8]} 57. h5 {[%clk 0:00:14.3]} 57... Bd2 {[%clk 0:00:08.8]} 58.
Nd4+ {[%clk 0:00:13.8]} 58... Kd6 {[%clk 0:00:09.2]} 59. Nf3 {[%clk 0:00:14.4]}
59... Bc1 {[%clk 0:00:08.5]} 60. Kf5 {[%clk 0:00:14.5]} 60... Kc5 {[%clk
0:00:07.5]} 61. g5 {[%clk 0:00:15.1]} 61... hxg5 {[%clk 0:00:07.8]} 62. Nxg5
{[%clk 0:00:15.5]} 62... Kxb5 {[%clk 0:00:07.2]} 63. h6 {[%clk 0:00:15.9]} 63...
Ka4 {[%clk 0:00:05.3]} 64. Ne4 {[%clk 0:00:14.8]} 64... Bxh6 {[%clk 0:00:04.2]}
65. Ke6 {[%clk 0:00:15.3]} 65... Kb3 {[%clk 0:00:04]} 66. Kd5 {[%clk 0:00:15.4]}
66... Be3 {[%clk 0:00:04]} 67. Nd6 {[%clk 0:00:13.2]} 67... Bc5 {[%clk
0:00:02.9]} 68. Nb5 {[%clk 0:00:13.5]} 68... Ka4 {[%clk 0:00:03.1]} 69. Kc6
{[%clk 0:00:13.8]} 69... Ka5 {[%clk 0:00:03.2]} 70. Na7 {[%clk 0:00:14.2]} 70...
Bg1 {[%clk 0:00:03.2]} 71. Nb5 {[%clk 0:00:15.1]} 71... Bf2 {[%clk 0:00:03.3]}
72. Na7 {[%clk 0:00:15.7]} 72... Bg1 {[%clk 0:00:03.1]} 73. Nb5 {[%clk
0:00:16.6]} 73... Ka6 {[%clk 0:00:04]} 74. Nc7+ {[%clk 0:00:16]} 74... Ka5
{[%clk 0:00:03.4]} 75. Nb5 {[%clk 0:00:16.9]} 1/2-1/2

[Event "Early-Titled-Tuesday-Blitz-January-16-2024"]
[Site "Chess.com"]
[Date "2024.01.16"]
[Round "5"]
[White "Msb2"]
[Black "ValentinDragnev"]
[Result "1/2-1/2"]
[WhiteElo "3051"]
[BlackElo "2779"]
[TimeControl "180+1"]
[EndTime "9:00:21 PST"]
[Termination "Game drawn by repetition"]

1. d4 {[%clk 0:03:00.9]} 1... d5 {[%clk 0:02:59.6]} 2. c4 {[%clk 0:03:00.4]}
2... e6 {[%clk 0:03:00.2]} 3. Nc3 {[%clk 0:03:00.7]} 3... c5 {[%clk 0:03:00.8]}
4. cxd5 {[%clk 0:02:59]} 4... cxd4 {[%clk 0:03:01.3]} 5. Qa4+ {[%clk 0:02:59]}
5... Bd7 {[%clk 0:03:01]} 6. Qxd4 {[%clk 0:02:59.8]} 6... exd5 {[%clk
0:03:01.8]} 7. Qxd5 {[%clk 0:03:00.7]} 7... Nf6 {[%clk 0:03:01.3]} 8. Qd1 {[%clk
0:03:00.9]} 8... Bc5 {[%clk 0:02:58.1]} 9. e3 {[%clk 0:02:58.4]} 9... O-O {[%clk
0:02:57.3]} 10. Nf3 {[%clk 0:02:58.8]} 10... Qe7 {[%clk 0:02:44.3]} 11. Be2
{[%clk 0:02:56.9]} 11... Rd8 {[%clk 0:02:44.8]} 12. O-O {[%clk 0:02:54.6]} 12...
Nc6 {[%clk 0:02:45.4]} 13. a3 {[%clk 0:02:50.2]} 13... Rac8 {[%clk 0:02:44.1]}
14. b4 {[%clk 0:02:47.5]} 14... Bf5 {[%clk 0:02:30.6]} 15. Qb3 {[%clk
0:02:38.9]} 15... Be6 {[%clk 0:02:25.8]} 16. Qb1 {[%clk 0:02:38.2]} 16... Bd6
{[%clk 0:02:24.7]} 17. Bb2 {[%clk 0:02:38.3]} 17... Ne5 {[%clk 0:02:22.8]} 18.
Rd1 {[%clk 0:02:28.2]} 18... Nfg4 {[%clk 0:02:15.2]} 19. h3 {[%clk 0:02:15.4]}
19... Nxf3+ {[%clk 0:02:14.8]} 20. Bxf3 {[%clk 0:02:16.3]} 20... Ne5 {[%clk
0:02:14.9]} 21. Be2 {[%clk 0:02:11.4]} 21... Nc4 {[%clk 0:02:12.9]} 22. Bxc4
{[%clk 0:01:50.9]} 22... Rxc4 {[%clk 0:02:08.5]} 23. Ne2 {[%clk 0:01:50.7]}
23... Qg5 {[%clk 0:01:57.4]} 24. Nf4 {[%clk 0:01:26.5]} 24... Bxf4 {[%clk
0:01:48.8]} 25. exf4 {[%clk 0:01:27.4]} 25... Rxf4 {[%clk 0:01:45.3]} 26. Rxd8+
{[%clk 0:01:25.5]} 26... Qxd8 {[%clk 0:01:46.2]} 27. Qe1 {[%clk 0:01:26]} 27...
Rf5 {[%clk 0:01:40]} 28. Rc1 {[%clk 0:01:22.5]} 28... Rd5 {[%clk 0:01:36.5]} 29.
Qc3 {[%clk 0:01:15.4]} 29... f6 {[%clk 0:01:30.5]} 30. Qf3 {[%clk 0:01:13.8]}
30... Qd7 {[%clk 0:01:22.4]} 31. Qg3 {[%clk 0:01:06.9]} 31... Rd1+ {[%clk
0:01:17.2]} 32. Rxd1 {[%clk 0:01:07]} 32... Qxd1+ {[%clk 0:01:17.4]} 33. Kh2
{[%clk 0:01:07.9]} 33... Kf7 {[%clk 0:01:17.1]} 34. Qb8 {[%clk 0:01:01.4]} 34...
Qd2 {[%clk 0:00:51.2]} 35. Qxb7+ {[%clk 0:00:58.9]} 35... Kg6 {[%clk 0:00:35.2]}
36. Qe4+ {[%clk 0:00:57.4]} 36... Bf5 {[%clk 0:00:35.7]} 37. Qd4 {[%clk
0:00:35.6]} 37... Qxd4 {[%clk 0:00:35]} 38. Bxd4 {[%clk 0:00:36.5]} 38... a6
{[%clk 0:00:35.7]} 39. Kg3 {[%clk 0:00:35.6]} 39... Be4 {[%clk 0:00:34.2]} 40.
f3 {[%clk 0:00:35.9]} 40... Bc6 {[%clk 0:00:33.2]} 41. Kf4 {[%clk 0:00:35.4]}
41... Kf7 {[%clk 0:00:33.8]} 42. h4 {[%clk 0:00:34.5]} 42... h5 {[%clk
0:00:33.5]} 43. Bc3 {[%clk 0:00:31.2]} 43... Ke6 {[%clk 0:00:32.3]} 44. g4
{[%clk 0:00:29.9]} 44... g6 {[%clk 0:00:32.7]} 45. Ke3 {[%clk 0:00:27.6]} 45...
f5 {[%clk 0:00:27.3]} 46. gxh5 {[%clk 0:00:26.7]} 46... gxh5 {[%clk 0:00:27.2]}
47. Kf4 {[%clk 0:00:26.3]} 47... Bb7 {[%clk 0:00:26]} 48. a4 {[%clk 0:00:24.9]}
48... Bc6 {[%clk 0:00:26]} 49. b5 {[%clk 0:00:25.5]} 49... axb5 {[%clk
0:00:26.9]} 50. a5 {[%clk 0:00:25.9]} 50... Bb7 {[%clk 0:00:26.4]} 51. Bb4
{[%clk 0:00:18.4]} 51... Kf6 {[%clk 0:00:24.9]} 52. Bc5 {[%clk 0:00:15.5]} 52...
Ke6 {[%clk 0:00:23.6]} 53. Ba3 {[%clk 0:00:15.1]} 53... Kf6 {[%clk 0:00:23.1]}
54. Bb4 {[%clk 0:00:15.6]} 54... Ke6 {[%clk 0:00:19.3]} 55. Bc3 {[%clk
0:00:16.2]} 55... Kf7 {[%clk 0:00:09.2]} 56. Kxf5 {[%clk 0:00:09.2]} 56... Bxf3
{[%clk 0:00:09]} 57. Ke5 {[%clk 0:00:09.9]} 57... Ke7 {[%clk 0:00:07.3]} 58. Kf4
{[%clk 0:00:07]} 58... Bb7 {[%clk 0:00:03.9]} 59. Kg5 {[%clk 0:00:07.6]} 59...
Bf3 {[%clk 0:00:04]} 60. a6 {[%clk 0:00:03.6]} 60... Kd7 {[%clk 0:00:03.9]} 61.
Kf4 {[%clk 0:00:04]} 61... Ba8 {[%clk 0:00:03.6]} 62. Kg5 {[%clk 0:00:04.6]}
62... Bf3 {[%clk 0:00:02.8]} 63. a7 {[%clk 0:00:03]} 63... Kc8 {[%clk
0:00:02.6]} 64. Bd4 {[%clk 0:00:03.9]} 64... Kb7 {[%clk 0:00:02.3]} 65. Kf4
{[%clk 0:00:04.8]} 65... Bg4 {[%clk 0:00:02.7]} 66. Ke5 {[%clk 0:00:05.7]} 66...
Ka8 {[%clk 0:00:03.2]} 67. Kd5 {[%clk 0:00:06.4]} 67... b4 {[%clk 0:00:03.8]}
68. Kc4 {[%clk 0:00:06.8]} 68... b3 {[%clk 0:00:04.7]} 69. Kxb3 {[%clk
0:00:07.3]} 69... Bf3 {[%clk 0:00:05.4]} 70. Kc3 {[%clk 0:00:08.2]} 70... Bg4
{[%clk 0:00:06.3]} 71. Be3 {[%clk 0:00:09.1]} 71... Bf3 {[%clk 0:00:06.6]} 72.
Kd2 {[%clk 0:00:10]} 72... Bg4 {[%clk 0:00:07.5]} 73. Ke1 {[%clk 0:00:10.9]}
73... Bf5 {[%clk 0:00:08]} 74. Kf2 {[%clk 0:00:11.8]} 74... Bg4 {[%clk
0:00:08.9]} 75. Kg3 {[%clk 0:00:12.7]} 75... Be6 {[%clk 0:00:09.5]} 76. Kf4
{[%clk 0:00:13.6]} 76... Bg4 {[%clk 0:00:10.4]} 77. Kg5 {[%clk 0:00:14.2]} 77...
Bd1 {[%clk 0:00:11.3]} 78. Bf2 {[%clk 0:00:14.8]} 78... Be2 {[%clk 0:00:11.9]}
79. Kf5 {[%clk 0:00:15.6]} 79... Bd1 {[%clk 0:00:12.8]} 80. Kf6 {[%clk
0:00:16.5]} 80... Be2 {[%clk 0:00:13.5]} 81. Ke5 {[%clk 0:00:17.4]} 81... Bd1
{[%clk 0:00:14.4]} 82. Kf4 {[%clk 0:00:18.3]} 82... Be2 {[%clk 0:00:15]} 83. Ke3
{[%clk 0:00:19.2]} 83... Bd1 {[%clk 0:00:15.9]} 84. Kd2 {[%clk 0:00:20.1]} 84...
Bg4 {[%clk 0:00:16.8]} 85. Kd3 {[%clk 0:00:20.3]} 85... Bf3 {[%clk 0:00:16.9]}
86. Ke3 {[%clk 0:00:19.9]} 86... Bg4 {[%clk 0:00:17.8]} 87. Ke4 {[%clk
0:00:20.8]} 87... Bd1 {[%clk 0:00:18.2]} 88. Kf4 {[%clk 0:00:21.5]} 88... Bg4
{[%clk 0:00:19.1]} 89. Kg5 {[%clk 0:00:22]} 89... Bd1 {[%clk 0:00:19.4]} 90. Bg1
{[%clk 0:00:22.6]} 90... Bg4 {[%clk 0:00:19.9]} 91. Bf2 {[%clk 0:00:23.5]} 91...
Bd1 {[%clk 0:00:20.5]} 92. Bg1 {[%clk 0:00:24.4]} 92... Bg4 {[%clk 0:00:21.2]}
93. Bf2 {[%clk 0:00:25.3]} 1/2-1/2